bitfinex/quotes_ETHUSD_20251017
["timestamp","ask_amount","ask_price","bid_price","bid_amount"]
[1760743979847,0.043291,3848.6,3848.5,2.59841496]
[1760743980066,4.39157379,3848.6,3848.5,2.59841496]
[1760743980385,4.93946028,3848.6,3848.3,0.001]
[1760743980669,27.313579,3848.4,3848.3,0.001]
[1760743980837,11.488785,3848.4,3848.3,0.001]
[1760743981035,3.89488279,3848.4,3848.3,0.001]
[1760743981374,7.82434579,3848.4,3848.3,0.001]
[1760743981538,9.28452108,3848.4,3848.3,0.001]
[1760743982874,14.90740387,3848.4,3848.3,0.001]
[1760743983060,17.94223387,3848.4,3848.3,0.001]
[1760743983460,14.53885465,3848.4,3848.3,0.001]
[1760743984074,17.45345965,3848.4,3848.3,0.001]
[1760743984398,17.86111196,3848.4,3848.3,0.001]
[1760743985088,25.59599096,3848.4,3848.3,0.001]
[1760743985292,25.00731496,3848.4,3848.3,0.001]
[1760743985668,24.29204096,3848.4,3848.3,0.001]
[1760743986159,24.21348996,3848.4,3848.3,0.001]
[1760743986355,15.583584,3848.2,3847.9,0.001]
[1760743986590,21.10553336,3848.0,3847.9,0.001]
[1760743986786,15.965538,3847.8,3847.6,0.001]
[1760743986986,26.782339,3847.7,3847.5,0.001]
[1760743987299,19.226465,3847.4,3846.3,2.59988583]
[1760743987467,19.226465,3847.4,3846.5,2.59976363]
[1760743987795,18.911904,3847.3,3846.3,2.59988349]
[1760743987958,18.911904,3847.3,3846.1,2.60002147]
[1760743988284,27.329179,3847.3,3846.0,0.1944]
[1760743988466,27.329179,3847.3,3846.4,2.59978221]
[1760743988666,27.53905229,3847.3,3846.6,2.59969361]
[1760743988878,27.17237529,3847.3,3846.6,2.59969361]
[1760743989190,27.17237529,3847.3,3845.7,2.60024177]
[1760743989191,26.49334758,3847.3,3845.7,2.60024177]
[1760743989367,19.32919036,3847.0,3846.1,2.79443013]
[1760743989573,1.728,3846.7,3845.7,2.60024412]
[1760743989789,1.728,3846.7,3845.7,2.60030683]
[1760743989790,4.38638636,3845.8,3845.7,2.60030683]
[1760743990161,0.40785714,3846.1,3846.0,2.600104]
[1760743990367,21.21876014,3846.1,3846.0,3.55623375]
[1760743990589,2.13585714,3846.1,3846.0,2.600104]
[1760743990793,2.13585714,3846.1,3846.0,3.036204]
[1760743991598,0.40785714,3846.1,3846.0,3.036204]
[1760743992761,0.1296,3846.2,3846.1,2.6000364]
[1760743993076,0.1296,3846.2,3846.1,3.2305364]
[1760743995003,0.1296,3846.2,3846.1,2.6000364]
[1760743995568,0.1296,3846.2,3845.6,0.5657]
[1760743995763,7.80500836,3845.9,3845.8,2.60023922]
[1760743995992,5.29973724,3845.9,3845.8,2.60023922]
[1760743996196,4.51598636,3845.9,3845.8,2.60023922]
[1760743997327,4.51598636,3845.9,3842.5,0.51762628]
[1760743997328,5.17978636,3845.9,3845.1,0.1944]
[1760743997530,4.38638636,3845.9,3845.8,2.60023922]
[1760743999720,0.40784336,3846.1,3845.8,2.60023922]
[1760743999721,0.40784336,3846.1,3846.0,2.600104]
[1760744001424,3.54582736,3846.1,3846.0,2.600104]
[1760744001623,0.40784336,3846.1,3846.0,2.600104]
[1760744003197,0.1296,3846.2,3846.1,2.6000364]
[1760744003399,0.579,3846.2,3846.1,2.6000364]
[1760744003814,0.1296,3846.2,3846.1,2.6000364]
[1760744007023,0.1296,3846.2,3846.1,2.7944364]
[1760744008926,0.40781696,3846.3,3846.2,2.5999688]
[1760744009168,0.1296,3846.6,3846.5,2.59976602]
[1760744009366,4.38638636,3847.5,3847.4,2.59915787]
[1760744009527,4.889995,3847.5,3847.4,2.59915787]
[1760744009871,4.889995,3847.5,3846.3,2.5999012]
[1760744009872,1.728,3847.1,3846.5,2.59975614]
[1760744010028,3.019263,3846.5,3846.3,2.59984623]
[1760744010238,3.019263,3846.5,3846.1,2.6000364]
[1760744010239,3.037591,3846.5,3846.4,2.59983361]
[1760744010435,4.38638636,3846.6,3846.5,2.59976602]
[1760744010637,5.992378,3846.4,3846.3,2.59984829]
[1760744010861,2.71078,3846.5,3846.3,2.59984829]
[1760744011062,5.487166,3846.4,3846.3,2.59986189]
[1760744011567,2.1358101,3846.5,3846.4,2.59983361]
[1760744011770,2.5711101,3846.5,3846.4,2.59983361]
[1760744011981,0.1296,3846.4,3845.6,0.001]
[1760744012182,11.55250736,3846.1,3845.7,2.60026206]
[1760744012466,6.62058987,3846.1,3845.8,2.60021818]
[1760744012668,6.62058987,3846.1,3845.9,2.60015974]
[1760744012964,7.05588987,3846.1,3845.9,2.60015974]
[1760744013164,5.32788987,3846.1,3845.6,2.60136562]
[1760744013363,5.32788987,3846.1,3845.7,2.60030345]
[1760744013364,10.28023787,3846.1,3845.7,2.60030345]
[1760744013566,11.33381587,3846.1,3845.6,0.001]
[1760744014265,11.33381587,3846.1,3845.6,2.6013714]
[1760744014465,33.60404487,3846.1,3845.6,0.001]
[1760744014667,29.31234187,3846.1,3845.6,0.001]
[1760744014837,17.55558187,3846.1,3845.7,2.60029835]
[1760744015162,17.25171387,3846.1,3845.7,2.60029835]
[1760744015379,17.25171387,3846.1,3845.6,0.001]
[1760744015380,16.21170887,3846.1,3845.6,0.001]
[1760744015549,14.04398687,3846.1,3845.9,2.60015948]
[1760744015749,13.71313387,3846.1,3845.6,0.001]
[1760744015947,4.89258987,3846.1,3845.6,0.001]
[1760744016139,7.45541536,3846.1,3846.0,2.601104]
[1760744016334,7.45541536,3846.1,3846.0,0.001]
[1760744016546,7.76303336,3846.1,3846.0,0.001]
[1760744016757,4.349589,3846.3,3846.1,2.60001242]
[1760744016956,3.151176,3846.1,3846.0,2.60108262]
[1760744017236,2.015061,3846.1,3846.0,2.6010515]
[1760744017431,2.015061,3846.1,3846.0,0.001]
[1760744017432,3.20732514,3846.1,3846.0,0.001]
[1760744017967,14.58156969,3846.1,3846.0,0.001]
[1760744018666,12.05044169,3846.1,3846.0,0.001]
[1760744018873,12.52482469,3846.1,3846.0,0.001]
[1760744019295,6.1557805,3845.3,3845.2,0.001]
[1760744019496,4.9643265,3845.3,3845.2,2.60164495]
[1760744019985,7.19801815,3845.3,3845.2,2.60164495]
[1760744020184,6.48692515,3845.3,3845.2,2.60164495]
[1760744020962,6.44158715,3845.3,3845.2,2.60164495]
[1760744021164,4.29027515,3845.3,3845.2,2.60164495]
[1760744021487,4.29027515,3845.3,3845.2,3.67307536]
[1760744021488,0.0443265,3845.3,3845.2,3.67307536]
[1760744022387,0.0443265,3845.3,3845.2,3.01651995]
[1760744024978,1.728,3845.8,3845.7,2.60030683]
[1760744025452,1.77332585,3845.8,3845.7,2.60030683]
[1760744025890,1.728,3845.8,3845.7,2.60030683]
[1760744027189,0.40789459,3845.9,3845.8,2.60023922]
[1760744027387,2.040502,3846.6,3845.9,2.60017161]
[1760744027690,1.728,3846.6,3846.5,2.59976602]
[1760744028391,4.79423884,3846.7,3846.6,2.59969843]
[1760744028687,2.13585248,3846.7,3846.6,2.59969843]
[1760744028989,0.40785248,3846.7,3846.6,2.59969843]
[1760744029285,0.002,3847.3,3846.8,2.55627227]
[1760744029586,0.1296,3847.1,3846.8,2.55627227]
[1760744029787,0.002,3847.3,3846.8,3.01647227]
[1760744030112,0.002,3847.3,3846.8,3.14607227]
[1760744031552,0.04530844,3847.2,3846.8,3.14607227]
[1760744034031,1e-08,3847.3,3847.2,2.59929299]
[1760744034392,1e-08,3847.3,3847.2,3.18909299]
[1760744034630,1e-08,3847.3,3847.2,3.78738016]
[1760744037937,1e-08,3847.3,3847.2,3.89159581]
[1760744040930,1e-08,3847.3,3847.2,3.30179581]
[1760744041112,0.46340001,3847.3,3847.2,2.59929299]
[1760744042335,0.002,3848.1,3848.0,2.59875259]
[1760744046240,0.002,3848.1,3848.0,3.04575259]
[1760744049015,0.002,3848.8,3848.7,2.59827993]
[1760744049730,0.002,3848.8,3848.7,3.11794423]
[1760744050257,0.002,3848.8,3848.7,3.56494423]
[1760744050951,0.002,3848.8,3848.7,3.69454423]
[1760744051152,1e-08,3849.2,3849.1,2.59800992]
[1760744051357,1e-08,3849.2,3849.1,3.3120202]
[1760744051720,1e-08,3849.2,3849.1,3.4416202]
[1760744052453,1e-08,3849.2,3849.1,3.8886202]
[1760744052675,1e-08,3849.2,3849.1,3.99279188]
[1760744053132,1e-08,3849.2,3849.1,3.8886202]
[1760744055240,1e-08,3849.2,3849.1,3.2472202]
[1760744055554,1e-08,3849.2,3849.1,2.72760992]
[1760744058261,0.43110001,3849.2,3849.1,2.72760992]
[1760744060266,1e-08,3849.2,3849.1,2.72760992]
[1760744061268,0.43110001,3849.2,3849.1,2.72760992]
[1760744062253,0.43110001,3849.2,3849.1,2.68328342]
[1760744066364,1e-08,3849.2,3849.1,2.68328342]
[1760744070469,0.46210001,3849.2,3849.1,2.68328342]
[1760744071747,1e-08,3849.2,3849.1,2.55368342]
[1760744074667,1e-08,3849.2,3849.1,2.55468342]
[1760744075573,1e-08,3849.6,3849.5,2.59773996]
[1760744079875,0.04727831,3849.7,3849.6,2.59767248]
[1760744079876,1e-08,3849.7,3849.6,2.59767248]
[1760744080199,0.4641,3850.0,3849.7,2.597605]
[1760744081782,0.4641,3850.0,3849.7,2.727205]
[1760744083599,0.002,3850.0,3849.7,2.727205]
[1760744085413,0.002,3850.0,3849.7,3.25969275]
[1760744087315,0.002,3850.0,3849.7,2.727205]
[1760744090616,0.4641,3849.8,3849.7,2.727205]
[1760744091418,0.002,3849.8,3849.7,2.727205]
[1760744091631,0.4641,3849.8,3849.7,2.727205]
[1760744096020,0.002,3849.8,3849.7,2.727205]
[1760744102126,0.27727314,3850.4,3850.3,2.59720021]
[1760744102328,0.002,3850.8,3850.3,2.59720021]
[1760744102624,0.002,3850.8,3850.4,2.59713276]
[1760744102793,0.002,3850.8,3850.4,3.04113276]
[1760744102993,0.002,3850.8,3850.4,2.59713276]
[1760744103231,0.002,3850.8,3850.4,3.39573957]
[1760744103739,0.002,3850.8,3850.4,2.59713276]
[1760744105810,0.44380001,3850.5,3850.4,2.59713276]
[1760744106010,1e-08,3850.5,3850.4,2.59713276]
[1760744106414,1e-08,3850.5,3850.4,3.04633276]
[1760744107131,1e-08,3850.5,3850.4,2.59713276]
[1760744107338,0.002,3850.9,3850.4,2.59713276]
[1760744107339,0.002,3850.9,3850.8,2.59686298]
[1760744108128,1e-08,3851.1,3850.8,2.59686298]
[1760744108340,0.002,3851.2,3851.1,2.59666069]
[1760744112338,0.002,3851.2,3851.1,2.72626069]
[1760744113622,0.002,3851.2,3851.1,2.92066069]
[1760744113821,0.002,3851.6,3851.5,2.59639101]
[1760744119765,0.002,3852.0,3851.9,2.59612139]
[1760744120168,0.002,3852.0,3851.9,2.72572139]
[1760744120325,2.3034,3852.0,3850.0,2.59738081]
[1760744120520,4.37893149,3851.7,3851.6,2.5963236]
[1760744120757,4.82273149,3851.7,3851.6,2.5963236]
[1760744121252,0.64204694,3851.9,3851.8,2.59618879]
[1760744121461,1.08584694,3851.9,3851.8,2.59618879]
[1760744122260,0.6786,3851.9,3851.8,2.59618879]
[1760744122622,0.72385257,3851.9,3851.8,2.59618879]
[1760744126671,1.13108293,3851.9,3851.8,2.59618879]
[1760744129361,0.04525257,3851.9,3851.8,3.11543456]
[1760744129851,0.04525257,3851.9,3851.8,2.59618879]
[1760744130053,0.002,3852.0,3851.9,2.59612139]
[1760744130587,0.002,3852.0,3851.9,2.72572139]
[1760744138763,0.002,3852.0,3851.9,3.19742139]
[1760744140317,0.002,3852.0,3851.9,2.72572139]
[1760744140610,0.002,3852.0,3851.9,3.5647093]
[1760744141714,0.002,3852.0,3851.9,4.0364093]
[1760744141924,0.002,3852.0,3851.9,3.9068093]
[1760744142101,0.002,3852.0,3851.9,4.3742093]
[1760744142496,0.4674,3853.4,3852.7,2.59558231]
[1760744142677,0.04523806,3853.1,3852.7,3.11470697]
[1760744143215,0.04523806,3853.1,3852.7,3.58640697]
[1760744143800,0.04523806,3853.1,3852.7,3.11470697]
[1760744144512,0.04523806,3853.1,3852.7,3.58640697]
[1760744144712,0.04523806,3853.1,3852.7,3.11470697]
[1760744144917,5.07773149,3852.8,3851.9,1.30638791]
[1760744145119,2.1954,3852.7,3852.3,2.59583104]
[1760744145287,4.37893149,3852.4,3852.3,2.59583104]
[1760744145487,4.84633149,3852.4,3852.3,2.59583104]
[1760744149453,7.2128968,3852.8,3852.7,2.59558231]
[1760744149742,2.83396531,3852.8,3852.7,2.59558231]
[1760744150104,1.728,3852.7,3851.1,0.4717]
[1760744150303,1.728,3852.7,3852.6,2.59564969]
[1760744150617,2.1954,3852.7,3852.6,2.59564969]
[1760744151439,2.24064499,3852.7,3852.6,2.59564969]
[1760744151942,2.37024499,3852.7,3852.6,2.59564969]
[1760744153348,2.37024499,3852.7,3852.5,2.59570354]
[1760744153512,0.4674,3852.6,3852.5,2.59570354]
[1760744155736,0.4674,3852.6,3852.1,2.72553626]
[1760744155947,4.37893149,3852.4,3852.3,2.59585182]
[1760744156423,1.728,3852.6,3852.4,2.59578444]
[1760744156739,1.728,3852.6,3852.5,2.59571706]
[1760744157303,0.04524499,3852.7,3852.6,2.59564969]
[1760744159016,2.21304499,3852.7,3852.6,2.59564969]
[1760744159342,2.89414264,3852.7,3852.6,2.59564969]
[1760744160206,1.77324499,3852.7,3852.6,2.59564969]
[1760744160631,2.21304499,3852.7,3852.6,2.59564969]
[1760744162447,1.77324499,3852.7,3852.6,2.59564969]
[1760744162609,0.04524499,3852.7,3852.6,2.59564969]
[1760744163215,0.04724499,3852.7,3852.6,2.59564969]
[1760744164313,1.36924264,3852.7,3852.4,0.001]
[1760744164546,12.49563849,3852.5,3852.4,0.001]
[1760744164843,11.72776949,3852.5,3852.4,0.001]
[1760744165042,12.56778351,3852.5,3852.4,0.001]
[1760744165246,13.91388163,3852.5,3852.4,0.001]
[1760744165552,11.83983494,3852.5,3852.4,0.001]
[1760744166563,24.45223074,3852.5,3852.4,0.001]
[1760744166755,16.4282986,3852.1,3852.0,0.001]
[1760744167048,17.34056778,3852.1,3852.0,0.001]
[1760744167216,6.917865,3852.1,3852.0,2.59705399]
[1760744167545,0.04525133,3852.2,3852.1,2.5959866]
[1760744167748,0.04525133,3852.2,3852.1,2.7903866]
[1760744167943,0.04525133,3852.2,3852.1,3.2476866]
[1760744168324,0.04525133,3852.2,3852.1,4.09177591]
[1760744168633,3.8912168,3852.2,3852.1,1.03848931]
[1760744168952,3.8912168,3852.2,3852.0,2.59704815]
[1760744169150,3.8912168,3852.2,3852.1,2.5959866]
[1760744169721,3.8912168,3852.2,3852.0,0.001]
[1760744170039,0.03244983,3852.1,3852.0,0.001]
[1760744170217,3.02198766,3852.1,3852.0,0.001]
[1760744170423,14.55213446,3852.1,3852.0,0.001]
[1760744171253,0.82516666,3852.1,3852.0,2.59705399]
[1760744171459,3.090555,3852.1,3852.0,2.59705399]
[1760744171661,3.56860823,3852.1,3852.0,0.001]
[1760744171960,0.47805323,3852.1,3852.0,2.59705399]
[1760744172257,6.39182023,3852.1,3852.0,0.001]
[1760744172653,8.65707723,3852.1,3852.0,0.001]
[1760744172905,15.53112343,3852.1,3852.0,0.001]
[1760744173632,7.35209943,3852.1,3852.0,0.001]
[1760744173851,26.98442943,3852.1,3852.0,0.001]
[1760744174426,21.68262843,3852.1,3852.0,0.001]
[1760744174651,13.74209943,3852.1,3852.0,0.001]
[1760744174846,27.39756243,3852.1,3852.0,0.001]
[1760744175857,29.80013543,3852.1,3852.0,0.001]
[1760744176160,29.38433343,3852.1,3852.0,0.001]
[1760744176861,39.39501543,3852.1,3852.0,0.001]
[1760744177159,38.39501543,3852.1,3852.0,0.001]
[1760744177762,13.74209943,3852.1,3852.0,0.001]
[1760744177961,38.63401543,3852.1,3852.0,0.001]
[1760744178161,36.57029343,3852.1,3852.0,0.001]
[1760744178365,31.17676943,3852.1,3852.0,0.001]
[1760744178662,29.4798982,3852.1,3852.0,0.001]
[1760744178861,29.4796382,3852.1,3852.0,0.001]
[1760744179469,24.4584692,3852.1,3852.0,0.001]
[1760744179669,20.1554462,3852.1,3852.0,0.001]
[1760744179844,20.8632342,3852.1,3852.0,0.001]
[1760744180458,20.6382342,3852.1,3852.0,0.001]
[1760744181067,21.7607212,3852.1,3852.0,0.001]
[1760744181468,21.80598203,3852.1,3852.0,0.001]
[1760744181670,22.21325941,3852.1,3852.0,0.001]
[1760744182064,14.58774101,3852.1,3852.0,0.001]
[1760744182988,14.58668501,3852.1,3852.0,0.001]
[1760744183153,14.17940763,3852.1,3852.0,0.001]
[1760744183791,12.05447763,3852.1,3852.0,0.001]
[1760744183960,14.17540763,3852.1,3852.0,0.001]
[1760744184294,12.05447763,3852.1,3852.0,0.001]
[1760744185079,12.05447763,3852.1,3852.0,2.59705399]
[1760744185284,12.05447763,3852.1,3852.0,3.05435399]
[1760744185285,5.66447763,3852.1,3852.0,3.05435399]
[1760744185578,5.79407763,3852.1,3852.0,0.001]
[1760744186360,15.50426163,3852.1,3852.0,0.001]
[1760744186568,21.37870459,3852.1,3852.0,0.001]
[1760744187196,2.59623634,3851.8,3851.2,0.001]
[1760744187369,18.9854708,3851.3,3851.2,0.001]
[1760744187569,21.9517366,3851.3,3851.2,0.001]
[1760744187792,9.57382094,3851.3,3851.2,0.001]
[1760744188008,8.72852937,3851.3,3851.2,0.001]
[1760744188293,8.68326294,3851.3,3851.2,0.001]
[1760744188494,3.8912168,3851.3,3851.2,2.59759326]
[1760744188670,3.8912168,3851.3,3851.2,3.03149326]
[1760744189298,3.8912168,3851.3,3851.2,0.001]
[1760744189599,3.8912168,3851.3,3851.2,2.59759326]
[1760744189789,3.8912168,3851.4,3851.3,2.59647633]
[1760744190093,3.8912168,3851.4,3851.3,3.03037633]
[1760744191303,5.6192168,3852.0,3851.4,2.59645843]
[1760744191522,3.8912168,3851.7,3851.5,0.4339]
[1760744191800,1.728,3852.0,3851.2,0.001]
[1760744191801,3.92367084,3851.6,3851.4,2.59645116]
[1760744192016,3.8912168,3851.5,3851.4,2.59645116]
[1760744192914,3.8912168,3851.5,3851.4,3.03035116]
[1760744193197,0.04525614,3851.9,3851.7,2.5962331]
[1760744193601,5.143724,3851.8,3851.6,2.59631311]
[1760744194099,4.045326,3851.8,3851.6,2.59631311]
[1760744194299,3.8912168,3851.7,3851.6,2.59631311]
[1760744197211,4.0208168,3851.7,3851.6,2.59631311]
[1760744197573,4.0208168,3851.7,3851.5,2.59638376]
[1760744197797,4.0208168,3851.7,3851.5,2.59637201]
[1760744198405,4.0208168,3851.7,3851.6,2.5963236]
[1760744198706,3.8912168,3851.7,3851.6,3.55050843]
[1760744200515,0.04525614,3851.9,3851.8,2.59618879]
[1760744201017,0.04525614,3851.9,3851.8,3.03008879]
[1760744201221,6.02645694,3852.0,3851.9,2.59612139]
[1760744202026,5.6192168,3852.0,3851.9,2.59612139]
[1760744203516,5.6644701,3852.0,3851.9,2.59612139]
[1760744205340,5.6644701,3852.0,3851.9,3.03002139]
[1760744205555,5.6644701,3852.0,3851.9,2.59612139]
[1760744206530,6.07169288,3852.0,3851.9,2.59612139]
[1760744208846,6.02643958,3852.0,3851.9,2.59612139]
[1760744211571,9.91765638,3852.0,3851.6,2.72690723]
[1760744211743,3.8912168,3851.7,3851.6,2.7269236]
[1760744212065,3.8912168,3851.7,3851.6,2.5973236]
[1760744213572,4.3508168,3851.7,3851.6,0.001]
[1760744214142,11.12295477,3851.7,3851.6,0.001]
[1760744214353,10.68398477,3851.7,3851.6,0.001]
[1760744214557,10.03292677,3851.7,3851.6,0.001]
[1760744215044,7.63326277,3851.7,3851.6,0.001]
[1760744215244,8.28430677,3851.7,3851.6,0.001]
[1760744216142,9.28430677,3851.7,3851.6,0.001]
[1760744216384,7.2192458,3851.7,3851.6,0.001]
[1760744216738,7.2192458,3851.7,3851.6,2.5973236]
[1760744217171,4.3508168,3851.7,3851.6,2.5973236]
[1760744217478,7.8320758,3851.7,3851.6,2.5973236]
[1760744217684,3.8912168,3851.7,3851.6,2.5973236]
[1760744218055,4.0208168,3851.7,3851.6,2.5973236]
[1760744219586,4.0208168,3851.7,3851.6,0.001]
[1760744219755,8.2112608,3851.7,3851.6,0.001]
[1760744219963,8.2112608,3851.7,3851.6,2.5973236]
[1760744220659,4.4517168,3851.7,3851.6,2.5973236]
[1760744220866,4.0208168,3851.7,3851.6,2.5973236]
[1760744221461,4.4517168,3851.7,3851.6,2.5973236]
[1760744221968,4.0208168,3851.7,3851.6,2.5973236]
[1760744222960,4.4615168,3851.7,3851.6,2.5973236]
[1760744223285,4.0208168,3851.7,3851.6,2.5973236]
[1760744227507,4.50722823,3851.7,3851.6,2.5973236]
[1760744229083,4.55248371,3851.7,3851.6,2.5973236]
[1760744230508,0.04525548,3851.7,3851.6,3.15990621]
[1760744230805,0.04525548,3851.7,3851.6,3.59100621]
[1760744231260,0.002,3852.0,3851.9,2.59612139]
[1760744231700,0.002,3852.0,3851.9,3.02722139]
[1760744231899,0.002,3852.0,3851.9,3.91851438]
[1760744233382,0.002,3852.0,3851.9,4.04811438]
[1760744242345,0.002,3852.0,3851.9,3.61701438]
[1760744242938,0.002,3852.0,3851.9,4.04811438]
[1760744243810,0.002,3852.0,3851.9,3.61701438]
[1760744246344,0.4427,3852.0,3851.9,3.61701438]
[1760744246824,0.002,3852.0,3851.9,3.61701438]
[1760744247544,4.37962823,3852.0,3851.9,2.72572139]
[1760744247719,4.82032823,3852.0,3851.9,2.72572139]
[1760744247918,4.82032823,3852.0,3851.9,2.59612139]
[1760744248431,4.86557721,3852.0,3851.9,2.59612139]
[1760744248955,5.31984595,3852.0,3851.7,0.1296]
[1760744249242,10.684325,3851.7,3851.6,0.001]
[1760744249614,11.135725,3851.7,3851.6,0.001]
[1760744250143,11.175387,3851.7,3851.6,0.001]
[1760744250823,12.84346634,3851.7,3851.6,0.001]
[1760744251234,2.24907934,3851.7,3851.6,0.001]
[1760744251545,13.3173742,3851.7,3851.6,0.001]
[1760744251740,13.284921,3851.7,3851.6,0.001]
[1760744252045,13.33017875,3851.7,3851.6,0.001]
[1760744252445,15.14217075,3851.7,3851.6,0.001]
[1760744252648,12.36351875,3851.7,3851.6,0.001]
[1760744252811,14.05973345,3851.7,3851.6,0.001]
[1760744254345,13.49173345,3851.7,3851.6,0.001]
[1760744254513,14.05973345,3851.7,3851.6,0.001]
[1760744255135,14.46700001,3851.7,3851.6,0.001]
[1760744255448,14.52425201,3851.7,3851.6,0.001]
[1760744256456,14.52425201,3851.7,3851.1,0.001]
[1760744256457,1.728,3851.5,3851.1,0.001]
[1760744256661,14.783508,3851.2,3851.1,0.001]
[1760744256823,12.352519,3851.2,3851.1,0.001]
[1760744257024,12.803919,3851.2,3851.1,0.001]
[1760744257243,12.803919,3851.2,3850.8,0.001]
[1760744257441,22.96146223,3850.9,3850.8,0.001]
[1760744257821,1.728,3850.6,3850.4,0.001]
[1760744258135,9.13510323,3850.5,3850.4,0.001]
[1760744258335,9.58650323,3850.5,3850.4,0.001]
[1760744258535,12.75583323,3850.5,3850.4,0.001]
[1760744258730,13.72536503,3850.5,3850.4,0.001]
[1760744259134,11.42487503,3850.5,3850.4,0.001]
[1760744259456,13.50611803,3850.5,3850.4,0.001]
[1760744259633,13.17289603,3850.5,3850.4,0.001]
[1760744259839,12.77289603,3850.5,3850.4,0.001]
[1760744260657,12.66889603,3850.5,3850.4,0.001]
[1760744261053,12.71416865,3850.5,3850.4,0.001]
[1760744261258,10.85676565,3850.5,3850.4,0.001]
[1760744261554,10.85676565,3850.5,3850.4,2.59813276]
[1760744261555,6.55828005,3850.5,3850.4,2.59813276]
[1760744261743,0.04527262,3850.5,3850.4,3.03293276]
[1760744262125,0.04527262,3850.5,3850.4,3.81408409]
[1760744262326,0.04527262,3850.5,3850.4,4.4746583]
[1760744263636,4.37762823,3851.8,3851.7,2.59625619]
[1760744263837,4.37762823,3851.8,3851.2,2.5965925]
[1760744263838,1.728,3851.6,3851.2,2.5965925]
[1760744264148,4.37762823,3851.3,3851.2,2.59659326]
[1760744265557,4.42288727,3851.3,3851.2,2.59659326]
[1760744266559,4.87428727,3851.3,3851.2,2.59659326]
[1760744267259,4.87428727,3851.3,3850.4,0.66157421]
[1760744267463,4.37762823,3850.8,3850.7,2.59693042]
[1760744268052,4.42289153,3850.8,3850.7,2.59693042]
[1760744268438,4.37762823,3850.8,3850.7,2.59693042]
[1760744268640,4.50722823,3851.2,3850.7,3.03173042]
[1760744268840,4.50722823,3851.2,3851.1,2.59666069]
[1760744269248,2.26489557,3851.5,3851.4,2.59645843]
[1760744269546,3.42568795,3851.5,3850.9,2.72634894]
[1760744269757,4.37762823,3851.2,3851.0,2.59668166]
[1760744270069,4.82902823,3851.1,3850.9,2.59677854]
[1760744270364,4.41008648,3851.1,3851.0,2.59672812]
[1760744270554,4.37762823,3851.1,3851.0,2.59672812]
[1760744270868,4.82902823,3851.1,3851.0,2.59672812]
[1760744271363,9.39292223,3851.1,3851.0,2.59672812]
[1760744272065,7.06229423,3851.1,3851.0,2.59672812]
[1760744274265,4.37762823,3851.1,3851.0,2.59672812]
[1760744275868,0.17486261,3851.2,3851.1,2.59666069]
[1760744280596,0.04526261,3851.2,3851.1,3.8575084]
[1760744280759,0.04526261,3851.2,3851.1,3.9871084]
[1760744280965,0.04526261,3851.2,3851.1,4.29907265]
[1760744281282,0.002,3851.5,3851.4,2.59645843]
[1760744281463,4.37762823,3851.2,3851.1,3.37761417]
[1760744282697,0.1316,3851.5,3851.4,2.59645843]
[1760744284985,0.5846,3851.5,3851.4,2.59645843]
[1760744286019,0.1316,3851.5,3851.4,2.59645843]
[1760744289376,4.02329672,3851.5,3851.4,2.59645843]
[1760744292413,4.47629672,3851.5,3851.4,2.59645843]
[1760744293914,4.47629672,3851.5,3851.3,2.59646811]
[1760744293915,4.952052,3851.5,3851.3,2.59646811]
[1760744294213,0.453,3851.4,3851.3,2.59652584]
[1760744294602,0.453,3851.4,3851.2,2.59659026]
[1760744294808,4.53150688,3851.5,3851.3,2.59646657]
[1760744295018,3.89169672,3851.4,3851.3,2.59646657]
[1760744295534,4.34469672,3851.4,3851.3,2.59646657]
[1760744296027,3.89169672,3851.4,3851.3,2.59646657]
[1760744296588,4.34469672,3851.4,3851.3,2.59646657]
[1760744296789,4.34469672,3851.4,3851.2,2.59654271]
[1760744297021,4.34469672,3851.4,3851.3,2.59652584]
[1760744298322,4.83757957,3851.4,3851.0,0.78103948]
[1760744298619,4.02129672,3851.1,3850.8,2.59683635]
[1760744298823,0.3656,3850.9,3850.7,2.59692222]
[1760744299025,3.89169672,3850.8,3850.7,2.59692222]
[1760744299813,3.89169672,3850.8,3850.6,0.001]
[1760744300116,0.453,3850.7,3850.6,0.001]
[1760744300997,8.29515669,3850.8,3850.6,0.001]
[1760744301303,8.74815669,3850.8,3850.6,0.001]
[1760744301504,0.453,3850.7,3850.6,0.001]
[1760744302107,0.453,3850.7,3850.6,2.59799787]
[1760744302832,8.34042404,3850.8,3850.6,0.001]
[1760744302998,8.34042404,3850.8,3850.6,2.59796436]
[1760744303202,8.79342404,3850.8,3850.6,0.001]
[1760744303503,8.79342404,3850.8,3850.6,2.59798172]
[1760744303708,8.34042404,3850.8,3850.6,0.001]
[1760744303909,0.453,3850.7,3850.6,0.001]
[1760744304744,15.8749404,3850.7,3850.6,0.001]
[1760744304925,11.8147254,3850.7,3850.6,0.001]
[1760744305235,10.0849674,3850.7,3850.6,0.001]
[1760744305805,10.8407944,3850.7,3850.6,0.001]
[1760744306002,8.3704474,3850.7,3850.6,0.001]
[1760744306312,7.9876214,3850.7,3850.6,0.001]
[1760744306614,0.9029424,3850.7,3850.6,2.59799787]
[1760744307500,8.34042404,3850.8,3850.6,2.59799787]
[1760744307701,12.24654904,3850.8,3850.7,2.59693042]
[1760744308001,10.847328,3850.7,3850.6,0.001]
[1760744308212,10.743409,3850.7,3850.6,0.001]
[1760744309117,10.795562,3850.7,3850.6,0.001]
[1760744309318,12.45665024,3850.7,3850.6,0.001]
[1760744310040,9.97127124,3850.7,3850.6,0.001]
[1760744310444,9.35872524,3850.7,3850.6,0.001]
[1760744311113,9.47492024,3850.7,3850.6,0.001]
[1760744311536,11.20292024,3850.7,3850.6,0.001]
[1760744312044,11.20292024,3850.7,3850.0,0.001]
[1760744312045,2.59724218,3850.3,3850.0,0.001]
[1760744312235,19.356649,3849.9,3848.2,0.4675]
[1760744312434,19.356649,3849.9,3847.4,2.59910766]
[1760744312435,14.38236372,3849.4,3848.8,2.59818926]
[1760744313115,19.97405572,3849.4,3848.8,2.59818926]
[1760744313315,20.48581897,3849.4,3848.9,2.59912617]
[1760744314125,20.36581897,3849.4,3848.9,2.59912617]